[Event "Titled Tuesday Blitz October 25 Late 2022"]
[White "Herman, Daniel"]
[Black "Faizrakhmanov, Ramil"]
[WhiteFideId "30935008"]
[BlackFideId "24103209"]
[WhiteElo "1897"]
[BlackElo "2421"]
[Result "1-0"]
[Round "04"]
[TimeControl "180+1"]
[Date "2022.10.26"]
[WhiteClock "0:00:46"]
[BlackClock "0:00:06"]

1. d4 {[%clk 0:03:00]}  Nf6 {[%clk 0:02:59]} 2. c4 {[%clk 0:03:01]}  e6 {[%clk 0:03:00]} 3. Nc3 {[%clk 0:03:02]}  Bb4 {[%clk 0:03:00]} 4. Qc2 {[%clk 0:03:02]}  d6 {[%clk 0:02:57]} 5. e4 {[%clk 0:02:58]}  Bxc3+ {[%clk 0:02:57]} 6. bxc3 {[%clk 0:02:59]}  e5 {[%clk 0:02:57]} 7. Bd3 {[%clk 0:02:52]}  Nc6 {[%clk 0:02:53]} 8. Ne2 {[%clk 0:02:52]}  O-O {[%clk 0:02:53]} 9. Bg5 {[%clk 0:02:46]}  h6 {[%clk 0:02:52]} 10. Bh4 {[%clk 0:02:45]}  exd4 {[%clk 0:02:48]} 11. cxd4 {[%clk 0:02:44]}  Nb4 {[%clk 0:02:46]} 12. Qb1 {[%clk 0:02:38]}  Nxd3+ {[%clk 0:02:46]} 13. Qxd3 {[%clk 0:02:39]}  Re8 {[%clk 0:02:46]} 14. f3 {[%clk 0:02:31]}  g5 {[%clk 0:02:43]} 15. Bf2 {[%clk 0:02:26]}  Nh5 {[%clk 0:02:34]} 16. O-O {[%clk 0:02:25]}  Qf6 {[%clk 0:02:34]} 17. g3 {[%clk 0:02:17]}  b6 {[%clk 0:02:32]} 18. d5 {[%clk 0:02:12]}  Qg6 {[%clk 0:02:24]} 19. Bd4 {[%clk 0:02:08]}  f5 {[%clk 0:02:22]} 20. Nc3 {[%clk 0:01:54]}  Nf6 {[%clk 0:02:12]} 21. Rae1 {[%clk 0:01:52]}  fxe4 {[%clk 0:02:02]} 22. fxe4 {[%clk 0:01:52]}  Ng4 {[%clk 0:02:01]} 23. Nb5 {[%clk 0:01:42]}  Re7 {[%clk 0:01:53]} 24. Qf3 {[%clk 0:01:39]}  Qe8 {[%clk 0:01:10]} 25. e5 {[%clk 0:01:29]}  dxe5 {[%clk 0:01:05]} 26. d6 {[%clk 0:01:23]}  e4 {[%clk 0:00:59]} 27. dxe7 {[%clk 0:01:09]}  exf3 {[%clk 0:00:56]} 28. Nxc7 {[%clk 0:01:09]}  Ba6 {[%clk 0:00:27]} 29. Nxa8 {[%clk 0:00:54]}  f2+ {[%clk 0:00:14]} 30. Bxf2 {[%clk 0:00:51]}  Nf6 {[%clk 0:00:12]} 31. Bd4 {[%clk 0:00:48]}  Qxa8 {[%clk 0:00:08]} 32. Rxf6 {[%clk 0:00:47]}  Qe8 {[%clk 0:00:06]} 33. Rf8+ {[%clk 0:00:46]} 1-0


[Site "https://www.chess.com"]

[Event "Titled Tuesday Blitz October 25 Late 2022"]
[White "Ismayil, Malak"]
[Black "Velikanov, Alexander"]
[WhiteFideId "13412604"]
[BlackFideId "2039290"]
[WhiteElo "1879"]
[BlackElo "2259"]
[Result "0-1"]
[Round "04"]
[TimeControl "180+1"]
[Date "2022.10.26"]
[WhiteClock "0:00:05"]
[BlackClock "0:00:13"]

1. e4 {[%clk 0:03:00]}  e5 {[%clk 0:02:59]} 2. Nf3 {[%clk 0:02:58]}  Nf6 {[%clk 0:02:59]} 3. Nxe5 {[%clk 0:02:57]}  d6 {[%clk 0:03:00]} 4. Nf3 {[%clk 0:02:57]}  Nxe4 {[%clk 0:03:00]} 5. Nc3 {[%clk 0:02:57]}  Nf6 {[%clk 0:02:59]} 6. d4 {[%clk 0:02:55]}  Be7 {[%clk 0:03:00]} 7. Bd3 {[%clk 0:02:55]}  O-O {[%clk 0:03:01]} 8. O-O {[%clk 0:02:54]}  Bg4 {[%clk 0:03:01]} 9. h3 {[%clk 0:02:55]}  Bh5 {[%clk 0:03:01]} 10. Bg5 {[%clk 0:02:53]}  c5 {[%clk 0:03:01]} 11. Be2 {[%clk 0:02:46]}  Nc6 {[%clk 0:02:59]} 12. dxc5 {[%clk 0:02:19]}  dxc5 {[%clk 0:02:58]} 13. Qxd8 {[%clk 0:02:19]}  Raxd8 {[%clk 0:02:55]} 14. a3 {[%clk 0:02:19]}  h6 {[%clk 0:02:45]} 15. Be3 {[%clk 0:02:17]}  Nd4 {[%clk 0:02:43]} 16. Bxd4 {[%clk 0:02:07]}  cxd4 {[%clk 0:02:44]} 17. Nb1 {[%clk 0:01:57]}  Rc8 {[%clk 0:01:25]} 18. g4 {[%clk 0:01:29]}  Bg6 {[%clk 0:01:25]} 19. Nxd4 {[%clk 0:01:28]}  Bc5 {[%clk 0:01:26]} 20. Nb3 {[%clk 0:01:23]}  Bb6 {[%clk 0:01:10]} 21. c3 {[%clk 0:01:15]}  Nd5 {[%clk 0:00:54]} 22. Bf3 {[%clk 0:00:36]}  Nf4 {[%clk 0:00:53]} 23. h4 {[%clk 0:00:37]}  Bd3 {[%clk 0:00:41]} 24. N1d2 {[%clk 0:00:24]}  Bxf1 {[%clk 0:00:41]} 25. Kxf1 {[%clk 0:00:25]}  Nd3 {[%clk 0:00:35]} 26. Rb1 {[%clk 0:00:20]}  Nxf2 {[%clk 0:00:30]} 27. Bxb7 {[%clk 0:00:20]}  Rc7 {[%clk 0:00:26]} 28. Bf3 {[%clk 0:00:21]}  Nh3 {[%clk 0:00:21]} 29. Ne4 {[%clk 0:00:18]}  f5 {[%clk 0:00:21]} 30. gxf5 {[%clk 0:00:16]}  Rxf5 {[%clk 0:00:22]} 31. Kg2 {[%clk 0:00:16]}  Nf4+ {[%clk 0:00:22]} 32. Kg3 {[%clk 0:00:16]}  Nd3 {[%clk 0:00:15]} 33. Nd6 {[%clk 0:00:12]}  Rf6 {[%clk 0:00:15]} 34. Bd5+ {[%clk 0:00:12]}  Kf8 {[%clk 0:00:15]} 35. Ne4 {[%clk 0:00:12]}  Rf5 {[%clk 0:00:15]} 36. c4 {[%clk 0:00:11]}  Re7 {[%clk 0:00:14]} 37. Nbd2 {[%clk 0:00:10]}  Bc7+ {[%clk 0:00:15]} 38. Kg2 {[%clk 0:00:08]}  Nf4+ {[%clk 0:00:15]} 39. Kh1 {[%clk 0:00:07]}  Nxd5 {[%clk 0:00:14]} 40. cxd5 {[%clk 0:00:07]}  Rxd5 {[%clk 0:00:15]} 41. Rf1+ {[%clk 0:00:08]}  Ke8 {[%clk 0:00:15]} 42. Rf2 {[%clk 0:00:08]}  Rde5 {[%clk 0:00:10]} 43. Nc3 {[%clk 0:00:06]}  Bb6 {[%clk 0:00:06]} 44. Rf3 {[%clk 0:00:03]}  Rh5 {[%clk 0:00:06]} 45. Rh3 {[%clk 0:00:02]}  g5 {[%clk 0:00:06]} 46. Rd3 {[%clk 0:00:01]}  Rxh4+ {[%clk 0:00:06]} 47. Kg2 {[%clk 0:00:02]}  Rf4 {[%clk 0:00:07]} 48. Nf3 {[%clk 0:00:02]}  g4 {[%clk 0:00:07]} 49. Nh4 {[%clk 0:00:02]}  Re6 {[%clk 0:00:05]} 50. Nd5 {[%clk 0:00:01]}  Rd4 {[%clk 0:00:04]} 51. Rxd4 {[%clk 0:00:01]}  Bxd4 {[%clk 0:00:04]} 52. Nc7+ {[%clk 0:00:01]}  Kd7 {[%clk 0:00:05]} 53. Nxe6 {[%clk 0:00:02]}  Kxe6 {[%clk 0:00:06]} 54. Kg3 {[%clk 0:00:03]}  h5 {[%clk 0:00:06]} 55. Ng2 {[%clk 0:00:03]}  Kf5 {[%clk 0:00:06]} 56. b3 {[%clk 0:00:03]}  Kg5 {[%clk 0:00:05]} 57. Ne1 {[%clk 0:00:02]}  Be5+ {[%clk 0:00:06]} 58. Kg2 {[%clk 0:00:02]}  h4 {[%clk 0:00:07]} 59. Nd3 {[%clk 0:00:02]}  Bd6 {[%clk 0:00:08]} 60. a4 {[%clk 0:00:02]}  h3+ {[%clk 0:00:08]} 61. Kg1 {[%clk 0:00:02]}  g3 {[%clk 0:00:09]} 62. b4 {[%clk 0:00:03]}  Kg4 {[%clk 0:00:10]} 63. b5 {[%clk 0:00:02]}  Kf3 {[%clk 0:00:10]} 64. Ne1+ {[%clk 0:00:03]}  Ke2 {[%clk 0:00:10]} 65. Nc2 {[%clk 0:00:04]}  Bc5+ {[%clk 0:00:09]} 66. Kh1 {[%clk 0:00:04]}  g2+ {[%clk 0:00:10]} 67. Kh2 {[%clk 0:00:04]}  g1=Q+ {[%clk 0:00:11]} 68. Kxh3 {[%clk 0:00:05]}  Kf3 {[%clk 0:00:11]} 69. Ne1+ {[%clk 0:00:05]}  Qxe1 {[%clk 0:00:11]} 70. Kh2 {[%clk 0:00:05]}  Qg3+ {[%clk 0:00:12]} 71. Kh1 {[%clk 0:00:05]}  Qg2# {[%clk 0:00:13]} 0-1


[Site "https://www.chess.com"]

[Event "Titled Tuesday Blitz October 25 Late 2022"]
[White "Itkis, Boris"]
[Black "Ibadov, Dashgyn"]
[WhiteFideId "1209167"]
[BlackFideId "24107514"]
[WhiteElo "2232"]
[BlackElo "2208"]
[Result "0-1"]
[Round "04"]
[TimeControl "180+1"]
[Date "2022.10.26"]
[WhiteClock "0:00:02"]
[BlackClock "0:00:04"]

1. c4 {[%clk 0:03:00]}  Nf6 {[%clk 0:02:57]} 2. Nf3 {[%clk 0:02:59]}  e6 {[%clk 0:02:55]} 3. b3 {[%clk 0:02:59]}  d5 {[%clk 0:02:54]} 4. Bb2 {[%clk 0:02:59]}  c5 {[%clk 0:02:55]} 5. e3 {[%clk 0:02:59]}  Nc6 {[%clk 0:02:54]} 6. g3 {[%clk 0:03:00]}  d4 {[%clk 0:02:52]} 7. exd4 {[%clk 0:03:01]}  cxd4 {[%clk 0:02:53]} 8. Bg2 {[%clk 0:03:01]}  e5 {[%clk 0:02:53]} 9. O-O {[%clk 0:03:01]}  Bd6 {[%clk 0:02:50]} 10. Re1 {[%clk 0:03:00]}  O-O {[%clk 0:02:50]} 11. d3 {[%clk 0:03:00]}  Bg4 {[%clk 0:02:43]} 12. Nbd2 {[%clk 0:02:59]}  Re8 {[%clk 0:02:43]} 13. a3 {[%clk 0:02:56]}  a5 {[%clk 0:02:42]} 14. Qc2 {[%clk 0:02:53]}  Nd7 {[%clk 0:02:15]} 15. h3 {[%clk 0:02:50]}  Bh5 {[%clk 0:02:13]} 16. Ne4 {[%clk 0:02:39]}  Bf8 {[%clk 0:01:59]} 17. g4 {[%clk 0:02:27]}  Bg6 {[%clk 0:01:59]} 18. Qd2 {[%clk 0:02:27]}  f5 {[%clk 0:01:47]} 19. Ng3 {[%clk 0:02:25]}  fxg4 {[%clk 0:01:40]} 20. hxg4 {[%clk 0:02:26]}  Nf6 {[%clk 0:01:22]} 21. Nh4 {[%clk 0:01:55]}  Nxg4 {[%clk 0:01:15]} 22. Nxg6 {[%clk 0:01:53]}  hxg6 {[%clk 0:01:16]} 23. Bd5+ {[%clk 0:01:53]}  Kh7 {[%clk 0:01:16]} 24. Kg2 {[%clk 0:01:49]}  Be7 {[%clk 0:00:58]} 25. Rh1+ {[%clk 0:01:48]}  Nh6 {[%clk 0:00:59]} 26. Bc1 {[%clk 0:01:29]}  Bh4 {[%clk 0:00:46]} 27. Ne4 {[%clk 0:01:09]}  Rf8 {[%clk 0:00:44]} 28. Qe2 {[%clk 0:00:59]}  Rf4 {[%clk 0:00:43]} 29. Bxf4 {[%clk 0:00:58]}  exf4 {[%clk 0:00:43]} 30. Rxh4 {[%clk 0:00:51]}  Qxh4 {[%clk 0:00:42]} 31. Rh1 {[%clk 0:00:51]}  Qe7 {[%clk 0:00:39]} 32. Qg4 {[%clk 0:00:48]}  Ne5 {[%clk 0:00:31]} 33. Ng5+ {[%clk 0:00:46]}  Kh8 {[%clk 0:00:26]} 34. Qh4 {[%clk 0:00:41]}  Qf6 {[%clk 0:00:17]} 35. Kf1 {[%clk 0:00:13]}  Rd8 {[%clk 0:00:15]} 36. Ne4 {[%clk 0:00:07]}  Qxh4 {[%clk 0:00:14]} 37. Rxh4 {[%clk 0:00:08]}  Nxd3 {[%clk 0:00:14]} 38. Ng5 {[%clk 0:00:07]}  Nc5 {[%clk 0:00:09]} 39. Nf7+ {[%clk 0:00:06]}  Kh7 {[%clk 0:00:06]} 40. Nxd8 {[%clk 0:00:06]}  Nxb3 {[%clk 0:00:07]} 41. Rxf4 {[%clk 0:00:05]}  d3 {[%clk 0:00:07]} 42. Ke1 {[%clk 0:00:04]}  Nf5 {[%clk 0:00:06]} 43. Be4 {[%clk 0:00:03]}  Nfd4 {[%clk 0:00:04]} 44. Rh4+ {[%clk 0:00:02]}  Kg8 {[%clk 0:00:04]} 0-1


[Site "https://www.chess.com"]

[Event "Titled Tuesday Blitz October 25 Late 2022"]
[White "Jimenez Almeida, Luis David"]
[Black "Korchmar, Vasiliy"]
[WhiteFideId "22242244"]
[BlackFideId "24131750"]
[WhiteElo "2158"]
[BlackElo "2370"]
[Result "0-1"]
[Round "04"]
[TimeControl "180+1"]
[Date "2022.10.26"]
[WhiteClock "0:00:33"]
[BlackClock "0:00:38"]

1. Nf3 {[%clk 0:03:00]}  d5 {[%clk 0:02:59]} 2. b3 {[%clk 0:03:00]}  Bg4 {[%clk 0:02:59]} 3. e3 {[%clk 0:02:59]}  Nf6 {[%clk 0:02:53]} 4. h3 {[%clk 0:02:56]}  Bh5 {[%clk 0:02:53]} 5. d3 {[%clk 0:02:55]}  Nbd7 {[%clk 0:02:51]} 6. g4 {[%clk 0:02:55]}  Bg6 {[%clk 0:02:51]} 7. Nh4 {[%clk 0:02:55]}  e5 {[%clk 0:02:50]} 8. Bb2 {[%clk 0:02:54]}  Bd6 {[%clk 0:02:50]} 9. Bg2 {[%clk 0:02:53]}  c6 {[%clk 0:02:50]} 10. Nd2 {[%clk 0:02:51]}  a5 {[%clk 0:02:49]} 11. a4 {[%clk 0:02:45]}  O-O {[%clk 0:02:45]} 12. Nxg6 {[%clk 0:02:44]}  hxg6 {[%clk 0:02:46]} 13. Qe2 {[%clk 0:02:43]}  b5 {[%clk 0:02:44]} 14. axb5 {[%clk 0:02:38]}  cxb5 {[%clk 0:02:45]} 15. g5 {[%clk 0:02:38]}  Nh5 {[%clk 0:02:45]} 16. Bxd5 {[%clk 0:02:33]}  Rc8 {[%clk 0:02:45]} 17. Nf3 {[%clk 0:02:18]}  Bb4+ {[%clk 0:02:36]} 18. Kf1 {[%clk 0:02:17]}  Bc3 {[%clk 0:02:26]} 19. Bxc3 {[%clk 0:02:10]}  Rxc3 {[%clk 0:02:27]} 20. h4 {[%clk 0:02:05]}  Nc5 {[%clk 0:02:22]} 21. e4 {[%clk 0:01:39]}  Nf4 {[%clk 0:02:19]} 22. Qd2 {[%clk 0:01:39]}  Nxd5 {[%clk 0:02:08]} 23. exd5 {[%clk 0:01:40]}  b4 {[%clk 0:02:07]} 24. Kg2 {[%clk 0:01:32]}  Qxd5 {[%clk 0:02:06]} 25. Rxa5 {[%clk 0:01:27]}  e4 {[%clk 0:01:38]} 26. dxe4 {[%clk 0:01:25]}  Qxe4 {[%clk 0:01:39]} 27. Rh3 {[%clk 0:01:15]}  Ne6 {[%clk 0:01:37]} 28. Re5 {[%clk 0:01:11]}  Qc6 {[%clk 0:01:24]} 29. Re2 {[%clk 0:01:05]}  Qc7 {[%clk 0:01:07]} 30. Ne5 {[%clk 0:00:56]}  Rd8 {[%clk 0:01:07]} 31. Rxc3 {[%clk 0:00:54]}  Qb7+ {[%clk 0:01:00]} 32. Rf3 {[%clk 0:00:49]}  Rxd2 {[%clk 0:00:56]} 33. Rxd2 {[%clk 0:00:50]}  Qe4 {[%clk 0:00:50]} 34. Nxf7 {[%clk 0:00:36]}  Nf4+ {[%clk 0:00:39]} 35. Kg3 {[%clk 0:00:34]}  Nh5+ {[%clk 0:00:39]} 36. Kg2 {[%clk 0:00:35]}  Qg4+ {[%clk 0:00:39]} 37. Rg3 {[%clk 0:00:33]}  Nxg3 {[%clk 0:00:38]} 0-1


[Site "https://www.chess.com"]

[Event "Titled Tuesday Blitz October 25 Late 2022"]
[White "Kisic, Bozidar"]
[Black "Saucey, Michel"]
[WhiteFideId "16500350"]
[BlackFideId "601845"]
[WhiteElo "2233"]
[BlackElo "2253"]
[Result "1-0"]
[Round "04"]
[TimeControl "180+1"]
[Date "2022.10.26"]
[WhiteClock "0:00:45"]
[BlackClock "0:00:14"]

1. d4 {[%clk 0:03:00]}  d5 {[%clk 0:02:58]} 2. Bf4 {[%clk 0:02:57]}  Nf6 {[%clk 0:02:56]} 3. Nc3 {[%clk 0:02:55]}  a6 {[%clk 0:02:52]} 4. Qd3 {[%clk 0:02:53]}  b5 {[%clk 0:02:36]} 5. e4 {[%clk 0:02:16]}  b4 {[%clk 0:02:35]} 6. Nxd5 {[%clk 0:02:16]}  Nxd5 {[%clk 0:02:33]} 7. exd5 {[%clk 0:02:17]}  Bb7 {[%clk 0:02:17]} 8. O-O-O {[%clk 0:02:11]}  Qxd5 {[%clk 0:02:14]} 9. Kb1 {[%clk 0:02:08]}  Nc6 {[%clk 0:02:09]} 10. Bxc7 {[%clk 0:01:53]}  e6 {[%clk 0:02:03]} 11. Be2 {[%clk 0:01:48]}  Be7 {[%clk 0:02:01]} 12. Bf3 {[%clk 0:01:47]}  Qd7 {[%clk 0:02:00]} 13. Bg3 {[%clk 0:01:45]}  O-O {[%clk 0:01:59]} 14. Ne2 {[%clk 0:01:45]}  Rfd8 {[%clk 0:01:54]} 15. Rhe1 {[%clk 0:01:45]}  Bf6 {[%clk 0:01:53]} 16. Qe3 {[%clk 0:01:38]}  Na5 {[%clk 0:01:46]} 17. Bxb7 {[%clk 0:01:36]}  Qxb7 {[%clk 0:01:46]} 18. Qf3 {[%clk 0:01:31]}  Qb5 {[%clk 0:01:31]} 19. Be5 {[%clk 0:01:20]}  Bxe5 {[%clk 0:01:25]} 20. dxe5 {[%clk 0:01:21]}  Nc4 {[%clk 0:01:24]} 21. Nd4 {[%clk 0:01:16]}  Qd5 {[%clk 0:00:23]} 22. Qxd5 {[%clk 0:00:54]}  Rxd5 {[%clk 0:00:23]} 23. Nc6 {[%clk 0:00:54]}  Rxd1+ {[%clk 0:00:20]} 24. Rxd1 {[%clk 0:00:54]}  a5 {[%clk 0:00:19]} 25. b3 {[%clk 0:00:49]}  Na3+ {[%clk 0:00:17]} 26. Kb2 {[%clk 0:00:49]}  g5 {[%clk 0:00:16]} 27. Rd8+ {[%clk 0:00:44]}  Rxd8 {[%clk 0:00:14]} 28. Nxd8 {[%clk 0:00:45]} 1-0


[Site "https://www.chess.com"]

[Event "Titled Tuesday Blitz October 25 Late 2022"]
[White "Koellner, Ruben Gideon"]
[Black "Ansh M Shah"]
[WhiteFideId "12993093"]
[BlackFideId "25033379"]
[WhiteElo "2303"]
[BlackElo "2084"]
[Result "1-0"]
[Round "04"]
[TimeControl "180+1"]
[Date "2022.10.26"]
[WhiteClock "0:00:09"]
[BlackClock "0:00:02"]

1. d4 {[%clk 0:03:00]}  Nf6 {[%clk 0:02:59]} 2. Bg5 {[%clk 0:02:58]}  e6 {[%clk 0:03:00]} 3. Nd2 {[%clk 0:02:58]}  d5 {[%clk 0:02:54]} 4. e3 {[%clk 0:02:50]}  h6 {[%clk 0:02:52]} 5. Bh4 {[%clk 0:02:47]}  g5 {[%clk 0:02:53]} 6. Bg3 {[%clk 0:02:46]}  Bg7 {[%clk 0:02:53]} 7. h4 {[%clk 0:02:46]}  g4 {[%clk 0:02:53]} 8. h5 {[%clk 0:02:46]}  c5 {[%clk 0:02:51]} 9. c3 {[%clk 0:02:45]}  Nc6 {[%clk 0:02:48]} 10. Bd3 {[%clk 0:02:36]}  Bd7 {[%clk 0:02:41]} 11. Ne2 {[%clk 0:02:31]}  b6 {[%clk 0:02:31]} 12. Bh4 {[%clk 0:02:21]}  Qc7 {[%clk 0:02:23]} 13. Ng3 {[%clk 0:02:03]}  e5 {[%clk 0:02:16]} 14. Bf5 {[%clk 0:01:37]}  exd4 {[%clk 0:01:52]} 15. cxd4 {[%clk 0:01:29]}  cxd4 {[%clk 0:01:53]} 16. O-O {[%clk 0:01:21]}  dxe3 {[%clk 0:01:13]} 17. fxe3 {[%clk 0:00:53]}  Qe5 {[%clk 0:00:31]} 18. Bxd7+ {[%clk 0:00:18]}  Kxd7 {[%clk 0:00:22]} 19. Nc4 {[%clk 0:00:12]}  Qe6 {[%clk 0:00:22]} 20. Nf5 {[%clk 0:00:08]}  Bf8 {[%clk 0:00:19]} 21. Nd4 {[%clk 0:00:06]}  Nxd4 {[%clk 0:00:18]} 22. Qxd4 {[%clk 0:00:07]}  Be7 {[%clk 0:00:14]} 23. Bxf6 {[%clk 0:00:07]}  Bxf6 {[%clk 0:00:13]} 24. Rxf6 {[%clk 0:00:08]}  Qe4 {[%clk 0:00:03]} 25. Rxf7+ {[%clk 0:00:08]}  Ke6 {[%clk 0:00:03]} 26. Qxe4+ {[%clk 0:00:08]}  dxe4 {[%clk 0:00:04]} 27. Raf1 {[%clk 0:00:09]}  Rac8 {[%clk 0:00:03]} 28. Nd2 {[%clk 0:00:07]}  Rc2 {[%clk 0:00:03]} 29. Nxe4 {[%clk 0:00:07]}  Rxb2 {[%clk 0:00:03]} 30. Nc3 {[%clk 0:00:04]}  Rc8 {[%clk 0:00:02]} 31. Ne4 {[%clk 0:00:04]}  Rxa2 {[%clk 0:00:02]} 32. R7f6+ {[%clk 0:00:04]}  Ke5 {[%clk 0:00:02]} 33. R6f4 {[%clk 0:00:04]}  Ke6 {[%clk 0:00:02]} 34. Rxg4 {[%clk 0:00:04]}  Rcc2 {[%clk 0:00:02]} 35. Rf6+ {[%clk 0:00:04]}  Ke5 {[%clk 0:00:02]} 36. Rxh6 {[%clk 0:00:05]}  Kf5 {[%clk 0:00:02]} 37. Rf4+ {[%clk 0:00:05]}  Ke5 {[%clk 0:00:02]} 38. Rg6 {[%clk 0:00:05]}  Kd5 {[%clk 0:00:02]} 39. Kh2 {[%clk 0:00:05]}  b5 {[%clk 0:00:02]} 40. Nf6+ {[%clk 0:00:06]}  Kc5 {[%clk 0:00:02]} 41. h6 {[%clk 0:00:06]}  Kb6 {[%clk 0:00:02]} 42. h7 {[%clk 0:00:07]}  Ka5 {[%clk 0:00:03]} 43. h8=Q {[%clk 0:00:07]}  a6 {[%clk 0:00:04]} 44. Qd8+ {[%clk 0:00:08]}  Rc7 {[%clk 0:00:02]} 45. Qxc7# {[%clk 0:00:09]} 1-0


[Site "https://www.chess.com"]

[Event "Titled Tuesday Blitz October 25 Late 2022"]
[White "Kollars, Dmitrij"]
[Black "Rustemov, Alexander"]
[WhiteFideId "12909572"]
[BlackFideId "4119002"]
[WhiteElo "2584"]
[BlackElo "2792"]
[Result "1-0"]
[Round "04"]
[TimeControl "180+1"]
[Date "2022.10.26"]
[WhiteClock "0:00:03"]
[BlackClock "0:00:01"]

1. Nf3 {[%clk 0:03:00]}  d5 {[%clk 0:02:59]} 2. g3 {[%clk 0:03:00]}  Nf6 {[%clk 0:02:59]} 3. Bg2 {[%clk 0:03:00]}  c6 {[%clk 0:03:00]} 4. O-O {[%clk 0:03:01]}  Bf5 {[%clk 0:03:01]} 5. d3 {[%clk 0:03:00]}  e6 {[%clk 0:03:01]} 6. c4 {[%clk 0:03:00]}  dxc4 {[%clk 0:03:01]} 7. dxc4 {[%clk 0:02:54]}  Qxd1 {[%clk 0:03:02]} 8. Rxd1 {[%clk 0:02:55]}  Bc2 {[%clk 0:03:02]} 9. Rd2 {[%clk 0:02:49]}  Bg6 {[%clk 0:03:01]} 10. Ne5 {[%clk 0:02:46]}  Nbd7 {[%clk 0:02:57]} 11. Nxg6 {[%clk 0:02:46]}  hxg6 {[%clk 0:02:57]} 12. Nc3 {[%clk 0:02:45]}  Bb4 {[%clk 0:02:56]} 13. Rc2 {[%clk 0:02:44]}  a5 {[%clk 0:02:53]} 14. Bd2 {[%clk 0:02:43]}  Ke7 {[%clk 0:02:51]} 15. a3 {[%clk 0:02:37]}  Bxc3 {[%clk 0:02:24]} 16. Bxc3 {[%clk 0:02:36]}  Rhd8 {[%clk 0:02:24]} 17. b3 {[%clk 0:02:26]}  Nc5 {[%clk 0:02:20]} 18. Rb1 {[%clk 0:02:26]}  a4 {[%clk 0:02:08]} 19. b4 {[%clk 0:02:25]}  Nb3 {[%clk 0:02:07]} 20. Bf3 {[%clk 0:02:18]}  Rd7 {[%clk 0:02:00]} 21. Kf1 {[%clk 0:02:15]}  Rad8 {[%clk 0:01:59]} 22. Ke1 {[%clk 0:02:15]}  Nd4 {[%clk 0:01:50]} 23. Bxd4 {[%clk 0:02:11]}  Rxd4 {[%clk 0:01:51]} 24. h4 {[%clk 0:02:11]}  Nd7 {[%clk 0:01:43]} 25. e3 {[%clk 0:01:54]}  Rd3 {[%clk 0:01:43]} 26. Ra1 {[%clk 0:01:55]}  Ne5 {[%clk 0:01:40]} 27. Be2 {[%clk 0:01:54]}  Rb3 {[%clk 0:01:40]} 28. c5 {[%clk 0:01:50]}  Nd3+ {[%clk 0:01:36]} 29. Kf1 {[%clk 0:01:50]}  f5 {[%clk 0:01:24]} 30. f4 {[%clk 0:01:35]}  e5 {[%clk 0:01:24]} 31. Rd2 {[%clk 0:01:31]}  e4 {[%clk 0:01:23]} 32. Bd1 {[%clk 0:01:18]}  Rb2 {[%clk 0:01:20]} 33. Rc2 {[%clk 0:00:55]}  Rb3 {[%clk 0:01:01]} 34. Ke2 {[%clk 0:00:54]}  Nb2 {[%clk 0:00:59]} 35. Rd2 {[%clk 0:00:19]}  Rxd2+ {[%clk 0:00:55]} 36. Kxd2 {[%clk 0:00:20]}  Rd3+ {[%clk 0:00:53]} 37. Ke2 {[%clk 0:00:20]}  Nxd1 {[%clk 0:00:53]} 38. Rxd1 {[%clk 0:00:19]}  Rxa3 {[%clk 0:00:54]} 39. Rd6 {[%clk 0:00:20]}  Rb3 {[%clk 0:00:47]} 40. Kd2 {[%clk 0:00:09]}  a3 {[%clk 0:00:42]} 41. Kc2 {[%clk 0:00:09]}  Rxb4 {[%clk 0:00:41]} 42. Rd1 {[%clk 0:00:07]}  Rb2+ {[%clk 0:00:40]} 43. Kc3 {[%clk 0:00:07]}  Re2 {[%clk 0:00:39]} 44. Kd4 {[%clk 0:00:04]}  a2 {[%clk 0:00:39]} 45. Ra1 {[%clk 0:00:05]}  Ke6 {[%clk 0:00:39]} 46. Kc4 {[%clk 0:00:05]}  Kd7 {[%clk 0:00:32]} 47. Kd4 {[%clk 0:00:05]}  Kc7 {[%clk 0:00:30]} 48. Kc4 {[%clk 0:00:04]}  Rxe3 {[%clk 0:00:30]} 49. Rxa2 {[%clk 0:00:04]}  Rxg3 {[%clk 0:00:30]} 50. Kd4 {[%clk 0:00:04]}  Rg4 {[%clk 0:00:30]} 51. Ke5 {[%clk 0:00:04]}  Rxh4 {[%clk 0:00:30]} 52. Rg2 {[%clk 0:00:04]}  Rg4 {[%clk 0:00:30]} 53. Rh2 {[%clk 0:00:04]}  b5 {[%clk 0:00:26]} 54. Rh7 {[%clk 0:00:01]}  b4 {[%clk 0:00:22]} 55. Rxg7+ {[%clk 0:00:02]}  Kb8 {[%clk 0:00:22]} 56. Kd6 {[%clk 0:00:02]}  b3 {[%clk 0:00:21]} 57. Kxc6 {[%clk 0:00:02]}  b2 {[%clk 0:00:11]} 58. Rb7+ {[%clk 0:00:02]}  Kc8 {[%clk 0:00:10]} 59. Rxb2 {[%clk 0:00:03]}  Rxf4 {[%clk 0:00:10]} 60. Rh2 {[%clk 0:00:03]}  Kd8 {[%clk 0:00:10]} 61. Kd6 {[%clk 0:00:04]}  Ke8 {[%clk 0:00:10]} 62. c6 {[%clk 0:00:03]}  Rf1 {[%clk 0:00:07]} 63. Rh8+ {[%clk 0:00:02]}  Kf7 {[%clk 0:00:07]} 64. c7 {[%clk 0:00:03]}  Rd1+ {[%clk 0:00:06]} 65. Ke5 {[%clk 0:00:03]}  Rc1 {[%clk 0:00:05]} 66. c8=Q {[%clk 0:00:03]}  Rxc8 {[%clk 0:00:05]} 67. Rxc8 {[%clk 0:00:04]}  Kg7 {[%clk 0:00:05]} 68. Kf4 {[%clk 0:00:04]}  Kh6 {[%clk 0:00:05]} 69. Rc7 {[%clk 0:00:04]}  e3 {[%clk 0:00:01]} 70. Re7 {[%clk 0:00:04]}  Kh5 {[%clk 0:00:01]} 71. Rh7# {[%clk 0:00:03]} 1-0


[Site "https://www.chess.com"]

[Event "Titled Tuesday Blitz October 25 Late 2022"]
[White "Krastev, Alexander"]
[Black "Sarkar, Justin"]
[WhiteFideId "12989983"]
[BlackFideId "2010011"]
[WhiteElo "2506"]
[BlackElo "2250"]
[Result "0-1"]
[Round "04"]
[TimeControl "180+1"]
[Date "2022.10.26"]
[WhiteClock "0:01:20"]
[BlackClock "0:01:42"]

1. e4 {[%clk 0:03:00]}  e5 {[%clk 0:02:57]} 2. Nc3 {[%clk 0:03:00]}  Bb4 {[%clk 0:02:48]} 3. a3 {[%clk 0:02:43]}  Bxc3 {[%clk 0:02:46]} 4. dxc3 {[%clk 0:02:43]}  d6 {[%clk 0:02:41]} 5. Qf3 {[%clk 0:02:28]}  Ne7 {[%clk 0:02:33]} 6. Ne2 {[%clk 0:02:27]}  O-O {[%clk 0:02:32]} 7. Ng3 {[%clk 0:02:27]}  f5 {[%clk 0:02:23]} 8. exf5 {[%clk 0:02:21]}  Nxf5 {[%clk 0:02:22]} 9. Nxf5 {[%clk 0:01:59]}  Rxf5 {[%clk 0:02:21]} 10. Qd5+ {[%clk 0:01:55]}  Kh8 {[%clk 0:02:17]} 11. Bd3 {[%clk 0:01:55]}  e4 {[%clk 0:02:12]} 12. Qb3 {[%clk 0:01:38]}  exd3 {[%clk 0:02:11]} 13. cxd3 {[%clk 0:01:39]}  Qe7+ {[%clk 0:02:07]} 14. Be3 {[%clk 0:01:39]}  Nc6 {[%clk 0:02:07]} 15. O-O {[%clk 0:01:38]}  Qf7 {[%clk 0:02:02]} 16. c4 {[%clk 0:01:35]}  b6 {[%clk 0:01:59]} 17. Rae1 {[%clk 0:01:31]}  Bb7 {[%clk 0:01:50]} 18. d4 {[%clk 0:01:23]}  Na5 {[%clk 0:01:44]} 19. Qc2 {[%clk 0:01:20]}  Nxc4 {[%clk 0:01:42]} 0-1


[Site "https://www.chess.com"]